{"text_format":"3","workbook":"xlsx","n_sheets":4,"sheets":["Budgetoverzicht","Budgetsamenvatting","Maandelijkse kosten","Aanvullende gegevens"],"not_rendered":{"charts":1,"images":4,"defined_names":7,"pivot_tables":2},"read":"whole","date_system":"1900"}

{"sheet":"Budgetoverzicht","index":0,"n_rows":12,"n_cols":8,"rows_kept":12,"merged":[[2,1,2,2],[3,1,3,2],[4,1,4,2]]}
[{"$nulls":7}," "]
[null,"Saldo"]
[null,"Geraamd saldo",null,{"$f":"Inkomstenprognose-Onkostenprognose","v":{"v":1585,"d":"€ 1,585"}},null,"Geraamde inkomsten minus uitgaven"]
[null,"Werkelijk saldo ",null,{"$f":"Werkelijke_inkomsten-Werkelijke_kosten","v":{"v":1740,"d":"€ 1,740"}},null,"Werkelijk minus uitgaven"]
[null,"Verschil",null,{"$f":"D4-D3","v":{"v":155,"d":"€ 155"}},null,"Werkelijk minus geraamd"]
[null,"Inkomsten",{"$nulls":3},"Uitgaven"]
[null,null,"Geraamd","Werkelijk",null,"Geraamd","Werkelijk"]
[null,"Inkomsten 1",{"v":6000,"d":"€ 6,000"},{"v":5800,"d":"€ 5,800"},null,{"$f":"SUM(MaandelijkseKostentabel[Geraamde kosten])","v":{"v":7915,"d":"€ 7,915"}},{"$f":"SUM(MaandelijkseKostentabel[Werkelijke kosten])","v":{"v":7860,"d":"€ 7,860"}}]
[null,"Inkomsten 2",{"v":1000,"d":"€ 1,000"},{"v":2300,"d":"€ 2,300"}]
[null,"Extra inkomsten",{"v":2500,"d":"€ 2,500"},{"v":1500,"d":"€ 1,500"}]
[null,"Totale inkomsten",{"$f":"SUM(C8:C10)","v":{"v":9500,"d":"€ 9,500"}},{"$f":"SUM(D8:D10)","v":{"v":9600,"d":"€ 9,600"}}]
[null,"Overzicht van de werkelijke uitgaven"]

{"sheet":"Budgetsamenvatting","index":1,"n_rows":41,"n_cols":7,"rows_kept":41}
[null,"Budgetsamenvatting",{"$nulls":4}," "]
[]
[null,"Categories","Geraamde kosten ","Werkelijke kosten ","Verschil "]
[null,"Kinderen",{"v":140,"d":"€ 140"},{"v":140,"d":"€ 140"},{"v":0,"d":"€ 0"}]
[null,"Buitenschoolse activiteiten",{"v":40,"d":"€ 40"},{"v":40,"d":"€ 40"},{"v":0,"d":"€ 0"}]
[null,"Medisch",null,null,{"v":0,"d":"€ 0"}]
[null,"Studiebenodigdheden",null,null,{"v":0,"d":"€ 0"}]
[null,"Studiekosten",{"v":100,"d":"€ 100"},{"v":100,"d":"€ 100"},{"v":0,"d":"€ 0"}]
[]
[null,"Entertainment",{"v":400,"d":"€ 400"},{"v":358,"d":"€ 358"},{"v":42,"d":"€ 42"}]
[null,"Concerten",{"v":50,"d":"€ 50"},{"v":40,"d":"€ 40"},{"v":10,"d":"€ 10"}]
[null,"Films",{"v":50,"d":"€ 50"},{"v":28,"d":"€ 28"},{"v":22,"d":"€ 22"}]
[null,"Muziek (cd's, downloads, enz.)",{"v":50,"d":"€ 50"},{"v":30,"d":"€ 30"},{"v":20,"d":"€ 20"}]
[null,"Sportevenementen",{"v":0,"d":"€ 0"},{"v":40,"d":"€ 40"},{"v":-40,"d":"€ -40"}]
[null,"Theater",{"v":200,"d":"€ 200"},{"v":150,"d":"€ 150"},{"v":50,"d":"€ 50"}]
[null,"Video/dvd (aankopen)",{"v":20,"d":"€ 20"},{"v":50,"d":"€ 50"},{"v":-30,"d":"€ -30"}]
[null,"Video/dvd (verhuur)",{"v":30,"d":"€ 30"},{"v":20,"d":"€ 20"},{"v":10,"d":"€ 10"}]
[]
[null,"Belastingen",{"v":300,"d":"€ 300"},{"v":300,"d":"€ 300"},{"v":0,"d":"€ 0"}]
[]
[null,"Cadeaus en liefdadigheidsinstelling",{"v":100,"d":"€ 100"},{"v":125,"d":"€ 125"},{"v":-25,"d":"€ -25"}]
[]
[null,"Eten en drinken",{"v":1100,"d":"€ 1,100"},{"v":1320,"d":"€ 1,320"},{"v":-220,"d":"€ -220"}]
[]
[null,"Huisdieren",{"v":170,"d":"€ 170"},{"v":100,"d":"€ 100"},{"v":70,"d":"€ 70"}]
[]
[null,"Huisvesting",{"v":2830,"d":"€ 2,830"},{"v":2702,"d":"€ 2,702"},{"v":-72,"d":"€ -72"}]
[]
[null,"Leningen",{"v":200,"d":"€ 200"},{"v":200,"d":"€ 200"},{"v":0,"d":"€ 0"}]
[]
[null,"Persoonlijke verzorging",{"v":150,"d":"€ 150"},{"v":140,"d":"€ 140"},{"v":10,"d":"€ 10"}]
[]
[null,"Vervoer",{"v":1425,"d":"€ 1,425"},{"v":1375,"d":"€ 1,375"},{"v":50,"d":"€ 50"}]
[]
[null,"Verzekering",{"v":900,"d":"€ 900"},{"v":900,"d":"€ 900"},{"v":0,"d":"€ 0"}]
[]
[null,"Spaargeld",{"v":200,"d":"€ 200"},{"v":200,"d":"€ 200"},{"v":0,"d":"€ 0"}]
[null,"Investeringsrekening",{"v":200,"d":"€ 200"},{"v":200,"d":"€ 200"},{"v":0,"d":"€ 0"}]
[null,"Pensioenrekening",null,null,{"v":0,"d":"€ 0"}]
[]
[null,"Обща сума",{"v":7915,"d":"€ 7,915"},{"v":7860,"d":"€ 7,860"},{"v":-145,"d":"€ -145"}]

{"sheet":"Maandelijkse kosten","index":2,"n_rows":61,"n_cols":8,"rows_kept":61}
[{"$nulls":7}," "]
[null,"Omschrijving","Categorie","Geraamde kosten","Werkelijke kosten","Verschil","Overzicht werkelijke kosten"]
[null,"Buitenschoolse activiteiten","Kinderen",{"v":40,"d":"€ 40"},{"v":40,"d":"€ 40"},{"$f":"IF(OR(MaandelijkseKostentabel[[#This Row],[Geraamde kosten]]=\"\",MaandelijkseKostentabel[[#This Row],[Werkelijke kosten]]=\"\"),\"\",MaandelijkseKostentabel[[#This Row],[Geraamde kosten]]-MaandelijkseKostentabel[[#This Row],[Werkelijke kosten]])","v":{"v":0,"d":"€ 0"}},{"$f":"MaandelijkseKostentabel[[#This Row],[Werkelijke kosten]]","v":40}]
[null,"Medisch","Kinderen",null,null,{"$f":"IF(OR(MaandelijkseKostentabel[[#This Row],[Geraamde kosten]]=\"\",MaandelijkseKostentabel[[#This Row],[Werkelijke kosten]]=\"\"),\"\",MaandelijkseKostentabel[[#This Row],[Geraamde kosten]]-MaandelijkseKostentabel[[#This Row],[Werkelijke kosten]])","v":""},{"$f":"MaandelijkseKostentabel[[#This Row],[Werkelijke kosten]]","v":0}]
[null,"Studiebenodigdheden","Kinderen",null,null,{"$f":"IF(OR(MaandelijkseKostentabel[[#This Row],[Geraamde kosten]]=\"\",MaandelijkseKostentabel[[#This Row],[Werkelijke kosten]]=\"\"),\"\",MaandelijkseKostentabel[[#This Row],[Geraamde kosten]]-MaandelijkseKostentabel[[#This Row],[Werkelijke kosten]])","v":""},{"$f":"MaandelijkseKostentabel[[#This Row],[Werkelijke kosten]]","v":0}]
[null,"Studiekosten","Kinderen",{"v":100,"d":"€ 100"},{"v":100,"d":"€ 100"},{"$f":"IF(OR(MaandelijkseKostentabel[[#This Row],[Geraamde kosten]]=\"\",MaandelijkseKostentabel[[#This Row],[Werkelijke kosten]]=\"\"),\"\",MaandelijkseKostentabel[[#This Row],[Geraamde kosten]]-MaandelijkseKostentabel[[#This Row],[Werkelijke kosten]])","v":{"v":0,"d":"€ 0"}},{"$f":"MaandelijkseKostentabel[[#This Row],[Werkelijke kosten]]","v":100}]
[null,"Concerten","Entertainment",{"v":50,"d":"€ 50"},{"v":40,"d":"€ 40"},{"$f":"IF(OR(MaandelijkseKostentabel[[#This Row],[Geraamde kosten]]=\"\",MaandelijkseKostentabel[[#This Row],[Werkelijke kosten]]=\"\"),\"\",MaandelijkseKostentabel[[#This Row],[Geraamde kosten]]-MaandelijkseKostentabel[[#This Row],[Werkelijke kosten]])","v":{"v":10,"d":"€ 10"}},{"$f":"MaandelijkseKostentabel[[#This Row],[Werkelijke kosten]]","v":40}]
[null,"Theater","Entertainment",{"v":200,"d":"€ 200"},{"v":150,"d":"€ 150"},{"$f":"IF(OR(MaandelijkseKostentabel[[#This Row],[Geraamde kosten]]=\"\",MaandelijkseKostentabel[[#This Row],[Werkelijke kosten]]=\"\"),\"\",MaandelijkseKostentabel[[#This Row],[Geraamde kosten]]-MaandelijkseKostentabel[[#This Row],[Werkelijke kosten]])","v":{"v":50,"d":"€ 50"}},{"$f":"MaandelijkseKostentabel[[#This Row],[Werkelijke kosten]]","v":150}]
[null,"Films","Entertainment",{"v":50,"d":"€ 50"},{"v":28,"d":"€ 28"},{"$f":"IF(OR(MaandelijkseKostentabel[[#This Row],[Geraamde kosten]]=\"\",MaandelijkseKostentabel[[#This Row],[Werkelijke kosten]]=\"\"),\"\",MaandelijkseKostentabel[[#This Row],[Geraamde kosten]]-MaandelijkseKostentabel[[#This Row],[Werkelijke kosten]])","v":{"v":22,"d":"€ 22"}},{"$f":"MaandelijkseKostentabel[[#This Row],[Werkelijke kosten]]","v":28}]
[null,"Muziek (cd's, downloads, enz.)","Entertainment",{"v":50,"d":"€ 50"},{"v":30,"d":"€ 30"},{"$f":"IF(OR(MaandelijkseKostentabel[[#This Row],[Geraamde kosten]]=\"\",MaandelijkseKostentabel[[#This Row],[Werkelijke kosten]]=\"\"),\"\",MaandelijkseKostentabel[[#This Row],[Geraamde kosten]]-MaandelijkseKostentabel[[#This Row],[Werkelijke kosten]])","v":{"v":20,"d":"€ 20"}},{"$f":"MaandelijkseKostentabel[[#This Row],[Werkelijke kosten]]","v":30}]
[null,"Sportevenementen","Entertainment",{"v":0,"d":"€ 0"},{"v":40,"d":"€ 40"},{"$f":"IF(OR(MaandelijkseKostentabel[[#This Row],[Geraamde kosten]]=\"\",MaandelijkseKostentabel[[#This Row],[Werkelijke kosten]]=\"\"),\"\",MaandelijkseKostentabel[[#This Row],[Geraamde kosten]]-MaandelijkseKostentabel[[#This Row],[Werkelijke kosten]])","v":{"v":-40,"d":"€ -40"}},{"$f":"MaandelijkseKostentabel[[#This Row],[Werkelijke kosten]]","v":40}]
[null,"Video/dvd (aankopen)","Entertainment",{"v":20,"d":"€ 20"},{"v":50,"d":"€ 50"},{"$f":"IF(OR(MaandelijkseKostentabel[[#This Row],[Geraamde kosten]]=\"\",MaandelijkseKostentabel[[#This Row],[Werkelijke kosten]]=\"\"),\"\",MaandelijkseKostentabel[[#This Row],[Geraamde kosten]]-MaandelijkseKostentabel[[#This Row],[Werkelijke kosten]])","v":{"v":-30,"d":"€ -30"}},{"$f":"MaandelijkseKostentabel[[#This Row],[Werkelijke kosten]]","v":50}]
[null,"Video/dvd (verhuur)","Entertainment",{"v":30,"d":"€ 30"},{"v":20,"d":"€ 20"},{"$f":"IF(OR(MaandelijkseKostentabel[[#This Row],[Geraamde kosten]]=\"\",MaandelijkseKostentabel[[#This Row],[Werkelijke kosten]]=\"\"),\"\",MaandelijkseKostentabel[[#This Row],[Geraamde kosten]]-MaandelijkseKostentabel[[#This Row],[Werkelijke kosten]])","v":{"v":10,"d":"€ 10"}},{"$f":"MaandelijkseKostentabel[[#This Row],[Werkelijke kosten]]","v":20}]
[null,"Uit eten","Eten en drinken",{"v":1000,"d":"€ 1,000"},{"v":1200,"d":"€ 1,200"},{"$f":"IF(OR(MaandelijkseKostentabel[[#This Row],[Geraamde kosten]]=\"\",MaandelijkseKostentabel[[#This Row],[Werkelijke kosten]]=\"\"),\"\",MaandelijkseKostentabel[[#This Row],[Geraamde kosten]]-MaandelijkseKostentabel[[#This Row],[Werkelijke kosten]])","v":{"v":-200,"d":"€ -200"}},{"$f":"MaandelijkseKostentabel[[#This Row],[Werkelijke kosten]]","v":1200}]
[null,"Boodschappen","Eten en drinken",{"v":100,"d":"€ 100"},{"v":120,"d":"€ 120"},{"$f":"IF(OR(MaandelijkseKostentabel[[#This Row],[Geraamde kosten]]=\"\",MaandelijkseKostentabel[[#This Row],[Werkelijke kosten]]=\"\"),\"\",MaandelijkseKostentabel[[#This Row],[Geraamde kosten]]-MaandelijkseKostentabel[[#This Row],[Werkelijke kosten]])","v":{"v":-20,"d":"€ -20"}},{"$f":"MaandelijkseKostentabel[[#This Row],[Werkelijke kosten]]","v":120}]
[null,"Liefdadigheid 1","Cadeaus en liefdadigheidsinstelling",{"v":75,"d":"€ 75"},{"v":100,"d":"€ 100"},{"$f":"IF(OR(MaandelijkseKostentabel[[#This Row],[Geraamde kosten]]=\"\",MaandelijkseKostentabel[[#This Row],[Werkelijke kosten]]=\"\"),\"\",MaandelijkseKostentabel[[#This Row],[Geraamde kosten]]-MaandelijkseKostentabel[[#This Row],[Werkelijke kosten]])","v":{"v":-25,"d":"€ -25"}},{"$f":"MaandelijkseKostentabel[[#This Row],[Werkelijke kosten]]","v":100}]
[null,"Liefdadigheid 2","Cadeaus en liefdadigheidsinstelling",{"v":25,"d":"€ 25"},{"v":25,"d":"€ 25"},{"$f":"IF(OR(MaandelijkseKostentabel[[#This Row],[Geraamde kosten]]=\"\",MaandelijkseKostentabel[[#This Row],[Werkelijke kosten]]=\"\"),\"\",MaandelijkseKostentabel[[#This Row],[Geraamde kosten]]-MaandelijkseKostentabel[[#This Row],[Werkelijke kosten]])","v":{"v":0,"d":"€ 0"}},{"$f":"MaandelijkseKostentabel[[#This Row],[Werkelijke kosten]]","v":25}]
[null,"Cadeau 1","Cadeaus en liefdadigheidsinstelling",null,null,{"$f":"IF(OR(MaandelijkseKostentabel[[#This Row],[Geraamde kosten]]=\"\",MaandelijkseKostentabel[[#This Row],[Werkelijke kosten]]=\"\"),\"\",MaandelijkseKostentabel[[#This Row],[Geraamde kosten]]-MaandelijkseKostentabel[[#This Row],[Werkelijke kosten]])","v":""},{"$f":"MaandelijkseKostentabel[[#This Row],[Werkelijke kosten]]","v":0}]
[null,"Cadeau 2","Cadeaus en liefdadigheidsinstelling",null,null,{"$f":"IF(OR(MaandelijkseKostentabel[[#This Row],[Geraamde kosten]]=\"\",MaandelijkseKostentabel[[#This Row],[Werkelijke kosten]]=\"\"),\"\",MaandelijkseKostentabel[[#This Row],[Geraamde kosten]]-MaandelijkseKostentabel[[#This Row],[Werkelijke kosten]])","v":""},{"$f":"MaandelijkseKostentabel[[#This Row],[Werkelijke kosten]]","v":0}]
[null,"Kabel/satelliet","Huisvesting",{"v":100,"d":"€ 100"},{"v":100,"d":"€ 100"},{"$f":"IF(OR(MaandelijkseKostentabel[[#This Row],[Geraamde kosten]]=\"\",MaandelijkseKostentabel[[#This Row],[Werkelijke kosten]]=\"\"),\"\",MaandelijkseKostentabel[[#This Row],[Geraamde kosten]]-MaandelijkseKostentabel[[#This Row],[Werkelijke kosten]])","v":{"v":0,"d":"€ 0"}},{"$f":"MaandelijkseKostentabel[[#This Row],[Werkelijke kosten]]","v":100}]
[null,"Elektriciteit","Huisvesting",{"v":45,"d":"€ 45"},{"v":50,"d":"€ 50"},{"$f":"IF(OR(MaandelijkseKostentabel[[#This Row],[Geraamde kosten]]=\"\",MaandelijkseKostentabel[[#This Row],[Werkelijke kosten]]=\"\"),\"\",MaandelijkseKostentabel[[#This Row],[Geraamde kosten]]-MaandelijkseKostentabel[[#This Row],[Werkelijke kosten]])","v":{"v":-5,"d":"€ -5"}},{"$f":"MaandelijkseKostentabel[[#This Row],[Werkelijke kosten]]","v":50}]
[null,"Gas","Huisvesting",{"v":300,"d":"€ 300"},{"v":400,"d":"€ 400"},{"$f":"IF(OR(MaandelijkseKostentabel[[#This Row],[Geraamde kosten]]=\"\",MaandelijkseKostentabel[[#This Row],[Werkelijke kosten]]=\"\"),\"\",MaandelijkseKostentabel[[#This Row],[Geraamde kosten]]-MaandelijkseKostentabel[[#This Row],[Werkelijke kosten]])","v":{"v":-100,"d":"€ -100"}},{"$f":"MaandelijkseKostentabel[[#This Row],[Werkelijke kosten]]","v":400}]
[null,"Schoonmaakdiensten","Huisvesting",{"v":200,"d":"€ 200"},null,{"$f":"IF(OR(MaandelijkseKostentabel[[#This Row],[Geraamde kosten]]=\"\",MaandelijkseKostentabel[[#This Row],[Werkelijke kosten]]=\"\"),\"\",MaandelijkseKostentabel[[#This Row],[Geraamde kosten]]-MaandelijkseKostentabel[[#This Row],[Werkelijke kosten]])","v":""},{"$f":"MaandelijkseKostentabel[[#This Row],[Werkelijke kosten]]","v":0}]
[null,"Onderhoud","Huisvesting",{"v":200,"d":"€ 200"},{"v":150,"d":"€ 150"},{"$f":"IF(OR(MaandelijkseKostentabel[[#This Row],[Geraamde kosten]]=\"\",MaandelijkseKostentabel[[#This Row],[Werkelijke kosten]]=\"\"),\"\",MaandelijkseKostentabel[[#This Row],[Geraamde kosten]]-MaandelijkseKostentabel[[#This Row],[Werkelijke kosten]])","v":{"v":50,"d":"€ 50"}},{"$f":"MaandelijkseKostentabel[[#This Row],[Werkelijke kosten]]","v":150}]
[null,"Hypotheek of huur","Huisvesting",{"v":1700,"d":"€ 1,700"},{"v":1700,"d":"€ 1,700"},{"$f":"IF(OR(MaandelijkseKostentabel[[#This Row],[Geraamde kosten]]=\"\",MaandelijkseKostentabel[[#This Row],[Werkelijke kosten]]=\"\"),\"\",MaandelijkseKostentabel[[#This Row],[Geraamde kosten]]-MaandelijkseKostentabel[[#This Row],[Werkelijke kosten]])","v":{"v":0,"d":"€ 0"}},{"$f":"MaandelijkseKostentabel[[#This Row],[Werkelijke kosten]]","v":1700}]
[null,"Aardgas/olie","Huisvesting",null,null,{"$f":"IF(OR(MaandelijkseKostentabel[[#This Row],[Geraamde kosten]]=\"\",MaandelijkseKostentabel[[#This Row],[Werkelijke kosten]]=\"\"),\"\",MaandelijkseKostentabel[[#This Row],[Geraamde kosten]]-MaandelijkseKostentabel[[#This Row],[Werkelijke kosten]])","v":""},{"$f":"MaandelijkseKostentabel[[#This Row],[Werkelijke kosten]]","v":0}]
[null,"Internetservice","Huisvesting",{"v":100,"d":"€ 100"},{"v":100,"d":"€ 100"},{"$f":"IF(OR(MaandelijkseKostentabel[[#This Row],[Geraamde kosten]]=\"\",MaandelijkseKostentabel[[#This Row],[Werkelijke kosten]]=\"\"),\"\",MaandelijkseKostentabel[[#This Row],[Geraamde kosten]]-MaandelijkseKostentabel[[#This Row],[Werkelijke kosten]])","v":{"v":0,"d":"€ 0"}},{"$f":"MaandelijkseKostentabel[[#This Row],[Werkelijke kosten]]","v":100}]
[null,"(Mobiele) telefoon","Huisvesting",{"v":60,"d":"€ 60"},{"v":60,"d":"€ 60"},{"$f":"IF(OR(MaandelijkseKostentabel[[#This Row],[Geraamde kosten]]=\"\",MaandelijkseKostentabel[[#This Row],[Werkelijke kosten]]=\"\"),\"\",MaandelijkseKostentabel[[#This Row],[Geraamde kosten]]-MaandelijkseKostentabel[[#This Row],[Werkelijke kosten]])","v":{"v":0,"d":"€ 0"}},{"$f":"MaandelijkseKostentabel[[#This Row],[Werkelijke kosten]]","v":60}]
[null,"Telefoon (thuis)","Huisvesting",{"v":35,"d":"€ 35"},{"v":39,"d":"€ 39"},{"$f":"IF(OR(MaandelijkseKostentabel[[#This Row],[Geraamde kosten]]=\"\",MaandelijkseKostentabel[[#This Row],[Werkelijke kosten]]=\"\"),\"\",MaandelijkseKostentabel[[#This Row],[Geraamde kosten]]-MaandelijkseKostentabel[[#This Row],[Werkelijke kosten]])","v":{"v":-4,"d":"€ -4"}},{"$f":"MaandelijkseKostentabel[[#This Row],[Werkelijke kosten]]","v":39}]
[null,"Benodigdheden","Huisvesting",{"v":40,"d":"€ 40"},{"v":55,"d":"€ 55"},{"$f":"IF(OR(MaandelijkseKostentabel[[#This Row],[Geraamde kosten]]=\"\",MaandelijkseKostentabel[[#This Row],[Werkelijke kosten]]=\"\"),\"\",MaandelijkseKostentabel[[#This Row],[Geraamde kosten]]-MaandelijkseKostentabel[[#This Row],[Werkelijke kosten]])","v":{"v":-15,"d":"€ -15"}},{"$f":"MaandelijkseKostentabel[[#This Row],[Werkelijke kosten]]","v":55}]
[null,"Afvalverwijdering en recyclen","Huisvesting",{"v":25,"d":"€ 25"},{"v":22,"d":"€ 22"},{"$f":"IF(OR(MaandelijkseKostentabel[[#This Row],[Geraamde kosten]]=\"\",MaandelijkseKostentabel[[#This Row],[Werkelijke kosten]]=\"\"),\"\",MaandelijkseKostentabel[[#This Row],[Geraamde kosten]]-MaandelijkseKostentabel[[#This Row],[Werkelijke kosten]])","v":{"v":3,"d":"€ 3"}},{"$f":"MaandelijkseKostentabel[[#This Row],[Werkelijke kosten]]","v":22}]
[null,"Water en riolering","Huisvesting",{"v":25,"d":"€ 25"},{"v":26,"d":"€ 26"},{"$f":"IF(OR(MaandelijkseKostentabel[[#This Row],[Geraamde kosten]]=\"\",MaandelijkseKostentabel[[#This Row],[Werkelijke kosten]]=\"\"),\"\",MaandelijkseKostentabel[[#This Row],[Geraamde kosten]]-MaandelijkseKostentabel[[#This Row],[Werkelijke kosten]])","v":{"v":-1,"d":"€ -1"}},{"$f":"MaandelijkseKostentabel[[#This Row],[Werkelijke kosten]]","v":26}]
[null,"Gezondheid","Verzekering",{"v":400,"d":"€ 400"},{"v":400,"d":"€ 400"},{"$f":"IF(OR(MaandelijkseKostentabel[[#This Row],[Geraamde kosten]]=\"\",MaandelijkseKostentabel[[#This Row],[Werkelijke kosten]]=\"\"),\"\",MaandelijkseKostentabel[[#This Row],[Geraamde kosten]]-MaandelijkseKostentabel[[#This Row],[Werkelijke kosten]])","v":{"v":0,"d":"€ 0"}},{"$f":"MaandelijkseKostentabel[[#This Row],[Werkelijke kosten]]","v":400}]
[null,"Woning","Verzekering",{"v":400,"d":"€ 400"},{"v":400,"d":"€ 400"},{"$f":"IF(OR(MaandelijkseKostentabel[[#This Row],[Geraamde kosten]]=\"\",MaandelijkseKostentabel[[#This Row],[Werkelijke kosten]]=\"\"),\"\",MaandelijkseKostentabel[[#This Row],[Geraamde kosten]]-MaandelijkseKostentabel[[#This Row],[Werkelijke kosten]])","v":{"v":0,"d":"€ 0"}},{"$f":"MaandelijkseKostentabel[[#This Row],[Werkelijke kosten]]","v":400}]
[null,"Leven","Verzekering",{"v":100,"d":"€ 100"},{"v":100,"d":"€ 100"},{"$f":"IF(OR(MaandelijkseKostentabel[[#This Row],[Geraamde kosten]]=\"\",MaandelijkseKostentabel[[#This Row],[Werkelijke kosten]]=\"\"),\"\",MaandelijkseKostentabel[[#This Row],[Geraamde kosten]]-MaandelijkseKostentabel[[#This Row],[Werkelijke kosten]])","v":{"v":0,"d":"€ 0"}},{"$f":"MaandelijkseKostentabel[[#This Row],[Werkelijke kosten]]","v":100}]
[null,"Creditcard 1","Leningen",{"v":200,"d":"€ 200"},{"v":200,"d":"€ 200"},{"$f":"IF(OR(MaandelijkseKostentabel[[#This Row],[Geraamde kosten]]=\"\",MaandelijkseKostentabel[[#This Row],[Werkelijke kosten]]=\"\"),\"\",MaandelijkseKostentabel[[#This Row],[Geraamde kosten]]-MaandelijkseKostentabel[[#This Row],[Werkelijke kosten]])","v":{"v":0,"d":"€ 0"}},{"$f":"MaandelijkseKostentabel[[#This Row],[Werkelijke kosten]]","v":200}]
[null,"Creditcard 2","Leningen",null,null,{"$f":"IF(OR(MaandelijkseKostentabel[[#This Row],[Geraamde kosten]]=\"\",MaandelijkseKostentabel[[#This Row],[Werkelijke kosten]]=\"\"),\"\",MaandelijkseKostentabel[[#This Row],[Geraamde kosten]]-MaandelijkseKostentabel[[#This Row],[Werkelijke kosten]])","v":""},{"$f":"MaandelijkseKostentabel[[#This Row],[Werkelijke kosten]]","v":0}]
[null,"Creditcard 3","Leningen",null,null,{"$f":"IF(OR(MaandelijkseKostentabel[[#This Row],[Geraamde kosten]]=\"\",MaandelijkseKostentabel[[#This Row],[Werkelijke kosten]]=\"\"),\"\",MaandelijkseKostentabel[[#This Row],[Geraamde kosten]]-MaandelijkseKostentabel[[#This Row],[Werkelijke kosten]])","v":""},{"$f":"MaandelijkseKostentabel[[#This Row],[Werkelijke kosten]]","v":0}]
[null,"Persoonlijk","Leningen",null,null,{"$f":"IF(OR(MaandelijkseKostentabel[[#This Row],[Geraamde kosten]]=\"\",MaandelijkseKostentabel[[#This Row],[Werkelijke kosten]]=\"\"),\"\",MaandelijkseKostentabel[[#This Row],[Geraamde kosten]]-MaandelijkseKostentabel[[#This Row],[Werkelijke kosten]])","v":""},{"$f":"MaandelijkseKostentabel[[#This Row],[Werkelijke kosten]]","v":0}]
[null,"Student/leerling","Leningen",null,null,{"$f":"IF(OR(MaandelijkseKostentabel[[#This Row],[Geraamde kosten]]=\"\",MaandelijkseKostentabel[[#This Row],[Werkelijke kosten]]=\"\"),\"\",MaandelijkseKostentabel[[#This Row],[Geraamde kosten]]-MaandelijkseKostentabel[[#This Row],[Werkelijke kosten]])","v":""},{"$f":"MaandelijkseKostentabel[[#This Row],[Werkelijke kosten]]","v":0}]
[null,"Kleding","Persoonlijke verzorging",{"v":150,"d":"€ 150"},{"v":140,"d":"€ 140"},{"$f":"IF(OR(MaandelijkseKostentabel[[#This Row],[Geraamde kosten]]=\"\",MaandelijkseKostentabel[[#This Row],[Werkelijke kosten]]=\"\"),\"\",MaandelijkseKostentabel[[#This Row],[Geraamde kosten]]-MaandelijkseKostentabel[[#This Row],[Werkelijke kosten]])","v":{"v":10,"d":"€ 10"}},{"$f":"MaandelijkseKostentabel[[#This Row],[Werkelijke kosten]]","v":140}]
[null,"Stomerij","Persoonlijke verzorging",null,null,{"$f":"IF(OR(MaandelijkseKostentabel[[#This Row],[Geraamde kosten]]=\"\",MaandelijkseKostentabel[[#This Row],[Werkelijke kosten]]=\"\"),\"\",MaandelijkseKostentabel[[#This Row],[Geraamde kosten]]-MaandelijkseKostentabel[[#This Row],[Werkelijke kosten]])","v":""},{"$f":"MaandelijkseKostentabel[[#This Row],[Werkelijke kosten]]","v":0}]
[null,"Haar/nagels","Persoonlijke verzorging",null,null,{"$f":"IF(OR(MaandelijkseKostentabel[[#This Row],[Geraamde kosten]]=\"\",MaandelijkseKostentabel[[#This Row],[Werkelijke kosten]]=\"\"),\"\",MaandelijkseKostentabel[[#This Row],[Geraamde kosten]]-MaandelijkseKostentabel[[#This Row],[Werkelijke kosten]])","v":""},{"$f":"MaandelijkseKostentabel[[#This Row],[Werkelijke kosten]]","v":0}]
[null,"Sportclub","Persoonlijke verzorging",null,null,{"$f":"IF(OR(MaandelijkseKostentabel[[#This Row],[Geraamde kosten]]=\"\",MaandelijkseKostentabel[[#This Row],[Werkelijke kosten]]=\"\"),\"\",MaandelijkseKostentabel[[#This Row],[Geraamde kosten]]-MaandelijkseKostentabel[[#This Row],[Werkelijke kosten]])","v":""},{"$f":"MaandelijkseKostentabel[[#This Row],[Werkelijke kosten]]","v":0}]
[null,"Medisch","Persoonlijke verzorging",null,null,{"$f":"IF(OR(MaandelijkseKostentabel[[#This Row],[Geraamde kosten]]=\"\",MaandelijkseKostentabel[[#This Row],[Werkelijke kosten]]=\"\"),\"\",MaandelijkseKostentabel[[#This Row],[Geraamde kosten]]-MaandelijkseKostentabel[[#This Row],[Werkelijke kosten]])","v":""},{"$f":"MaandelijkseKostentabel[[#This Row],[Werkelijke kosten]]","v":0}]
[null,"Eten en drinken","Huisdieren",{"v":150,"d":"€ 150"},{"v":75,"d":"€ 75"},{"$f":"IF(OR(MaandelijkseKostentabel[[#This Row],[Geraamde kosten]]=\"\",MaandelijkseKostentabel[[#This Row],[Werkelijke kosten]]=\"\"),\"\",MaandelijkseKostentabel[[#This Row],[Geraamde kosten]]-MaandelijkseKostentabel[[#This Row],[Werkelijke kosten]])","v":{"v":75,"d":"€ 75"}},{"$f":"MaandelijkseKostentabel[[#This Row],[Werkelijke kosten]]","v":75}]
[null,"Verzorging","Huisdieren",{"v":20,"d":"€ 20"},{"v":25,"d":"€ 25"},{"$f":"IF(OR(MaandelijkseKostentabel[[#This Row],[Geraamde kosten]]=\"\",MaandelijkseKostentabel[[#This Row],[Werkelijke kosten]]=\"\"),\"\",MaandelijkseKostentabel[[#This Row],[Geraamde kosten]]-MaandelijkseKostentabel[[#This Row],[Werkelijke kosten]])","v":{"v":-5,"d":"€ -5"}},{"$f":"MaandelijkseKostentabel[[#This Row],[Werkelijke kosten]]","v":25}]
[null,"Medisch","Huisdieren",null,null,{"$f":"IF(OR(MaandelijkseKostentabel[[#This Row],[Geraamde kosten]]=\"\",MaandelijkseKostentabel[[#This Row],[Werkelijke kosten]]=\"\"),\"\",MaandelijkseKostentabel[[#This Row],[Geraamde kosten]]-MaandelijkseKostentabel[[#This Row],[Werkelijke kosten]])","v":""},{"$f":"MaandelijkseKostentabel[[#This Row],[Werkelijke kosten]]","v":0}]
[null,"Speelgoed","Huisdieren",null,null,{"$f":"IF(OR(MaandelijkseKostentabel[[#This Row],[Geraamde kosten]]=\"\",MaandelijkseKostentabel[[#This Row],[Werkelijke kosten]]=\"\"),\"\",MaandelijkseKostentabel[[#This Row],[Geraamde kosten]]-MaandelijkseKostentabel[[#This Row],[Werkelijke kosten]])","v":""},{"$f":"MaandelijkseKostentabel[[#This Row],[Werkelijke kosten]]","v":0}]
[null,"Investeringsrekening","Spaargeld",{"v":200,"d":"€ 200"},{"v":200,"d":"€ 200"},{"$f":"IF(OR(MaandelijkseKostentabel[[#This Row],[Geraamde kosten]]=\"\",MaandelijkseKostentabel[[#This Row],[Werkelijke kosten]]=\"\"),\"\",MaandelijkseKostentabel[[#This Row],[Geraamde kosten]]-MaandelijkseKostentabel[[#This Row],[Werkelijke kosten]])","v":{"v":0,"d":"€ 0"}},{"$f":"MaandelijkseKostentabel[[#This Row],[Werkelijke kosten]]","v":200}]
[null,"Pensioenrekening","Spaargeld",null,null,{"$f":"IF(OR(MaandelijkseKostentabel[[#This Row],[Geraamde kosten]]=\"\",MaandelijkseKostentabel[[#This Row],[Werkelijke kosten]]=\"\"),\"\",MaandelijkseKostentabel[[#This Row],[Geraamde kosten]]-MaandelijkseKostentabel[[#This Row],[Werkelijke kosten]])","v":""},{"$f":"MaandelijkseKostentabel[[#This Row],[Werkelijke kosten]]","v":0}]
[null,"Overheid","Belastingen",{"v":300,"d":"€ 300"},{"v":300,"d":"€ 300"},{"$f":"IF(OR(MaandelijkseKostentabel[[#This Row],[Geraamde kosten]]=\"\",MaandelijkseKostentabel[[#This Row],[Werkelijke kosten]]=\"\"),\"\",MaandelijkseKostentabel[[#This Row],[Geraamde kosten]]-MaandelijkseKostentabel[[#This Row],[Werkelijke kosten]])","v":{"v":0,"d":"€ 0"}},{"$f":"MaandelijkseKostentabel[[#This Row],[Werkelijke kosten]]","v":300}]
[null,"Lokaal","Belastingen",null,null,{"$f":"IF(OR(MaandelijkseKostentabel[[#This Row],[Geraamde kosten]]=\"\",MaandelijkseKostentabel[[#This Row],[Werkelijke kosten]]=\"\"),\"\",MaandelijkseKostentabel[[#This Row],[Geraamde kosten]]-MaandelijkseKostentabel[[#This Row],[Werkelijke kosten]])","v":""},{"$f":"MaandelijkseKostentabel[[#This Row],[Werkelijke kosten]]","v":0}]
[null,"Provincie","Belastingen",null,null,{"$f":"IF(OR(MaandelijkseKostentabel[[#This Row],[Geraamde kosten]]=\"\",MaandelijkseKostentabel[[#This Row],[Werkelijke kosten]]=\"\"),\"\",MaandelijkseKostentabel[[#This Row],[Geraamde kosten]]-MaandelijkseKostentabel[[#This Row],[Werkelijke kosten]])","v":""},{"$f":"MaandelijkseKostentabel[[#This Row],[Werkelijke kosten]]","v":0}]
[null,"Openbaar vervoer","Vervoer",{"v":100,"d":"€ 100"},{"v":150,"d":"€ 150"},{"$f":"IF(OR(MaandelijkseKostentabel[[#This Row],[Geraamde kosten]]=\"\",MaandelijkseKostentabel[[#This Row],[Werkelijke kosten]]=\"\"),\"\",MaandelijkseKostentabel[[#This Row],[Geraamde kosten]]-MaandelijkseKostentabel[[#This Row],[Werkelijke kosten]])","v":{"v":-50,"d":"€ -50"}},{"$f":"MaandelijkseKostentabel[[#This Row],[Werkelijke kosten]]","v":150}]
[null,"Brandstof","Vervoer",{"v":450,"d":"€ 450"},{"v":400,"d":"€ 400"},{"$f":"IF(OR(MaandelijkseKostentabel[[#This Row],[Geraamde kosten]]=\"\",MaandelijkseKostentabel[[#This Row],[Werkelijke kosten]]=\"\"),\"\",MaandelijkseKostentabel[[#This Row],[Geraamde kosten]]-MaandelijkseKostentabel[[#This Row],[Werkelijke kosten]])","v":{"v":50,"d":"€ 50"}},{"$f":"MaandelijkseKostentabel[[#This Row],[Werkelijke kosten]]","v":400}]
[null,"Verzekering","Vervoer",{"v":300,"d":"€ 300"},{"v":300,"d":"€ 300"},{"$f":"IF(OR(MaandelijkseKostentabel[[#This Row],[Geraamde kosten]]=\"\",MaandelijkseKostentabel[[#This Row],[Werkelijke kosten]]=\"\"),\"\",MaandelijkseKostentabel[[#This Row],[Geraamde kosten]]-MaandelijkseKostentabel[[#This Row],[Werkelijke kosten]])","v":{"v":0,"d":"€ 0"}},{"$f":"MaandelijkseKostentabel[[#This Row],[Werkelijke kosten]]","v":300}]
[null,"Kentekenbewijs/rijbewijs ","Vervoer",{"v":25,"d":"€ 25"},{"v":25,"d":"€ 25"},{"$f":"IF(OR(MaandelijkseKostentabel[[#This Row],[Geraamde kosten]]=\"\",MaandelijkseKostentabel[[#This Row],[Werkelijke kosten]]=\"\"),\"\",MaandelijkseKostentabel[[#This Row],[Geraamde kosten]]-MaandelijkseKostentabel[[#This Row],[Werkelijke kosten]])","v":{"v":0,"d":"€ 0"}},{"$f":"MaandelijkseKostentabel[[#This Row],[Werkelijke kosten]]","v":25}]
[null,"Onderhoud","Vervoer",{"v":100,"d":"€ 100"},{"v":50,"d":"€ 50"},{"$f":"IF(OR(MaandelijkseKostentabel[[#This Row],[Geraamde kosten]]=\"\",MaandelijkseKostentabel[[#This Row],[Werkelijke kosten]]=\"\"),\"\",MaandelijkseKostentabel[[#This Row],[Geraamde kosten]]-MaandelijkseKostentabel[[#This Row],[Werkelijke kosten]])","v":{"v":50,"d":"€ 50"}},{"$f":"MaandelijkseKostentabel[[#This Row],[Werkelijke kosten]]","v":50}]
[null,"Parkeerkosten","Vervoer",null,null,{"$f":"IF(OR(MaandelijkseKostentabel[[#This Row],[Geraamde kosten]]=\"\",MaandelijkseKostentabel[[#This Row],[Werkelijke kosten]]=\"\"),\"\",MaandelijkseKostentabel[[#This Row],[Geraamde kosten]]-MaandelijkseKostentabel[[#This Row],[Werkelijke kosten]])","v":""},{"$f":"MaandelijkseKostentabel[[#This Row],[Werkelijke kosten]]","v":0}]
[null,"Autobetaling","Vervoer",{"v":450,"d":"€ 450"},{"v":450,"d":"€ 450"},{"$f":"IF(OR(MaandelijkseKostentabel[[#This Row],[Geraamde kosten]]=\"\",MaandelijkseKostentabel[[#This Row],[Werkelijke kosten]]=\"\"),\"\",MaandelijkseKostentabel[[#This Row],[Geraamde kosten]]-MaandelijkseKostentabel[[#This Row],[Werkelijke kosten]])","v":{"v":0,"d":"€ 0"}},{"$f":"MaandelijkseKostentabel[[#This Row],[Werkelijke kosten]]","v":450}]

{"sheet":"Aanvullende gegevens","index":3,"n_rows":17,"n_cols":6,"rows_kept":17}
[{"$nulls":5}," "]
[null,"Draaitabel voor grafiek Budgetoverzicht",null,null,"Lijst met categorieën"]
[]
[null,"Categories","Kosten ",null,"Als een categorie wilt toevoegen, typt u deze hieronder"]
[null,"Huisdieren",{"v":100,"d":"€ 100"},null,"Kinderen"]
[null,"Cadeaus en liefdadigheidsinstelling",{"v":125,"d":"€ 125"},null,"Entertainment"]
[null,"Kinderen",{"v":140,"d":"€ 140"},null,"Eten en drinken"]
[null,"Persoonlijke verzorging",{"v":140,"d":"€ 140"},null,"Cadeaus en liefdadigheidsinstelling"]
[null,"Leningen",{"v":200,"d":"€ 200"},null,"Huisvesting"]
[null,"Spaargeld",{"v":200,"d":"€ 200"},null,"Verzekering"]
[null,"Belastingen",{"v":300,"d":"€ 300"},null,"Leningen"]
[null,"Entertainment",{"v":358,"d":"€ 358"},null,"Persoonlijke verzorging"]
[null,"Verzekering",{"v":900,"d":"€ 900"},null,"Huisdieren"]
[null,"Eten en drinken",{"v":1320,"d":"€ 1,320"},null,"Spaargeld"]
[null,"Vervoer",{"v":1375,"d":"€ 1,375"},null,"Belastingen"]
[null,"Huisvesting",{"v":2702,"d":"€ 2,702"},null,"Vervoer"]
[null,"Обща сума",{"v":7860,"d":"€ 7,860"}]